fUSD/lending_fUSD_20260503
["ID","MTS","AMOUNT","RATE_DAILY","PERIOD"]
[421470989,1777738263000,-500.0,0.00032547,2]
[421470998,1777738263000,-519.59,0.00032547,2]
[421470996,1777738263000,-500.0,0.00032547,2]
[421471003,1777738263000,-500.0,0.00032547,2]
[421470999,1777738263000,-500.0,0.00032547,2]
[421471006,1777738263000,-699.76,0.00032547,2]
[421471022,1777738263000,-500.0,0.00032547,2]
[421471009,1777738263000,-500.0,0.00032547,2]
[421471004,1777738263000,-2511.16,0.00032547,2]
[421471008,1777738263000,-271.70704291,0.00032547,2]
[421471017,1777738263000,-926.86,0.00032547,2]
[421471014,1777738263000,-613.49,0.00032547,2]
[421471015,1777738263000,-500.0,0.00032547,2]
[421471021,1777738263000,-701.38,0.00032547,2]
[421471013,1777738263000,-520.28,0.00032547,2]
[421471016,1777738263000,-500.0,0.00032547,2]
[421471012,1777738263000,-776.41,0.00032547,2]
[421470992,1777738263000,-500.0,0.00032547,2]
[421471019,1777738263000,-500.0,0.00032547,2]
[421471020,1777738263000,-471.77895056,0.00032547,2]
[421471007,1777738263000,-341.29318878,0.00032547,2]
[421470990,1777738263000,-500.0,0.00032547,2]
[421471018,1777738263000,-500.0,0.00032547,2]
[421470991,1777738263000,-688.56,0.00032547,2]
[421470962,1777738263000,-500.0,0.00032547,2]
[421470972,1777738263000,-188.63510482,0.00032547,2]
[421470964,1777738263000,-500.0,0.00032547,2]
[421470965,1777738263000,-500.0,0.00032547,2]
[421470963,1777738263000,-801.36,0.00032547,2]
[421470967,1777738263000,-596.07187478,0.00032547,2]
[421470969,1777738263000,-500.0,0.00032547,2]
[421470968,1777738263000,-500.0,0.00032547,2]
[421470966,1777738263000,-500.0,0.00032547,2]
[421470971,1777738263000,-500.0,0.00032547,2]
[421470970,1777738263000,-500.0,0.00032547,2]
[421470973,1777738263000,-500.0,0.00032547,2]
[421470974,1777738263000,-732.98,0.00032547,2]
[421470994,1777738263000,-772.17,0.00032547,2]
[421470984,1777738263000,-500.0,0.00032547,2]
[421470977,1777738263000,-3387.89,0.00032547,2]
[421470976,1777738263000,-2298.37,0.00032547,2]
[421470985,1777738263000,-514.13238509,0.00032547,2]
[421470978,1777738263000,-643.32,0.00032547,2]
[421470980,1777738263000,-500.0,0.00032547,2]
[421470983,1777738263000,-500.0,0.00032547,2]
[421470981,1777738263000,-830.29,0.00032547,2]
[421470979,1777738263000,-500.0,0.00032547,2]
[421470982,1777738263000,-500.0,0.00032547,2]
[421470988,1777738263000,-266.50232918,0.00032547,2]
[421470986,1777738263000,-500.0,0.00032547,2]
[421470987,1777738263000,-500.0,0.00032547,2]
[421470997,1777738263000,-500.0,0.00032547,2]
[421470975,1777738263000,-500.0,0.00032547,2]
[421471011,1777738263000,-867.68,0.00032547,2]
[421471082,1777738263000,-150.0,0.00032575,7]
[421471026,1777738263000,-764.18,0.00032547,2]
[421471059,1777738263000,-685.03,0.00032547,2]
[421471055,1777738263000,-191.1472087,0.00032547,2]
[421471056,1777738263000,-500.0,0.00032547,2]
[421471054,1777738263000,-662.84,0.00032547,2]
[421471062,1777738263000,-579.57363051,0.00032547,2]
[421471072,1777738263000,-799.47,0.00032547,2]
[421471073,1777738263000,-500.0,0.00032547,2]
[421471061,1777738263000,-500.0,0.00032547,2]
[421471064,1777738263000,-714.84,0.00032547,2]
[421471069,1777738263000,-713.23,0.00032547,2]
[421471066,1777738263000,-644.8,0.00032547,2]
[421471068,1777738263000,-500.0,0.00032547,2]
[421471071,1777738263000,-527.59,0.00032547,2]
[421471057,1777738263000,-500.0,0.00032547,2]
[421471063,1777738263000,-3075.01,0.00032547,2]
[421471065,1777738263000,-500.0,0.00032547,2]
[421471074,1777738263000,-712.57,0.00032547,2]
[421471085,1777738263000,-4100.0,0.000326,11]
[421471075,1777738263000,-500.0,0.00032547,2]
[421471076,1777738263000,-500.0,0.00032547,2]
[421471080,1777738263000,-500.0,0.00032547,2]
[421471083,1777738263000,-150.0,0.00032575,7]
[421471084,1777738263000,-2000.0,0.00032587,2]
[421471081,1777738263000,-150.0,0.00032562,2]
[421471077,1777738263000,-500.0,0.00032547,2]
[421471079,1777738263000,-500.0,0.00032547,2]
[421471078,1777738263000,-500.0,0.00032547,2]
[421471023,1777738263000,-616.49,0.00032547,2]
[421471067,1777738263000,-500.0,0.00032547,2]
[421471058,1777738263000,-563.50498297,0.00032547,2]
[421471070,1777738263000,-510.0,0.00032547,2]
[421471052,1777738263000,-852.88,0.00032547,2]
[421471049,1777738263000,-1216.39,0.00032547,2]
[421471025,1777738263000,-500.0,0.00032547,2]
[421471030,1777738263000,-500.0,0.00032547,2]
[421471024,1777738263000,-485.82755119,0.00032547,2]
[421471029,1777738263000,-500.0,0.00032547,2]
[421471036,1777738263000,-547.25255186,0.00032547,2]
[421471028,1777738263000,-500.0,0.00032547,2]
[421471035,1777738263000,-500.0,0.00032547,2]
[421471033,1777738263000,-500.0,0.00032547,2]
[421471032,1777738263000,-500.0,0.00032547,2]
[421471034,1777738263000,-500.0,0.00032547,2]
[421471031,1777738263000,-3171.81,0.00032547,2]
[421471042,1777738263000,-627.62,0.00032547,2]
[421471041,1777738263000,-948.77,0.00032547,2]
[421471027,1777738263000,-500.0,0.00032547,2]
[421471043,1777738263000,-500.0,0.00032547,2]
[421471053,1777738263000,-578.95,0.00032547,2]
[421471037,1777738263000,-500.0,0.00032547,2]
[421471051,1777738263000,-500.0,0.00032547,2]
[421471050,1777738263000,-500.0,0.00032547,2]
[421471060,1777738263000,-500.0,0.00032547,2]
[421471045,1777738263000,-705.16,0.00032547,2]
[421471047,1777738263000,-500.0,0.00032547,2]
[421471048,1777738263000,-500.0,0.00032547,2]
[421471038,1777738263000,-500.0,0.00032547,2]
[421471040,1777738263000,-500.0,0.00032547,2]
[421471046,1777738263000,-955.49,0.00032547,2]
[421471039,1777738263000,-5151.24,0.00032547,2]
[421471044,1777738263000,-500.0,0.00032547,2]
[421471112,1777738264000,-572.34,0.00032602,2]
[421471119,1777738264000,-500.0,0.00032602,2]
[421471109,1777738264000,-678.03,0.00032602,2]
[421471098,1777738264000,-500.0,0.00032602,2]
[421471118,1777738264000,-647.22,0.00032602,2]
[421471105,1777738264000,-797.0,0.00032602,2]
[421471113,1777738264000,-950.75,0.00032602,2]
[421471111,1777738264000,-500.0,0.00032602,2]
[421471116,1777738264000,-500.0,0.00032602,2]
[421471115,1777738264000,-5967.71,0.00032602,2]
[421471117,1777738264000,-500.0,0.00032602,2]
[421471110,1777738264000,-500.0,0.00032602,2]
[421471108,1777738264000,-500.0,0.00032602,2]
[421471107,1777738264000,-865.8,0.00032602,2]
[421471131,1777738264000,-523.44,0.00032602,2]
[421471114,1777738264000,-500.0,0.00032602,2]
[421471099,1777738264000,-733.4,0.00032602,2]
[421471090,1777738264000,-500.0,0.00032602,2]
[421471100,1777738264000,-500.0,0.00032602,2]
[421471121,1777738264000,-775.96,0.00032602,2]
[421471086,1777738264000,-500.0,0.00032602,2]
[421471088,1777738264000,-736.97,0.00032602,2]
[421471091,1777738264000,-500.0,0.00032602,2]
[421471089,1777738264000,-500.0,0.00032602,2]
[421471087,1777738264000,-500.0,0.00032602,2]
[421471093,1777738264000,-500.0,0.00032602,2]
[421471102,1777738264000,-500.0,0.00032602,2]
[421471095,1777738264000,-620.55,0.00032602,2]
[421471096,1777738264000,-500.0,0.00032602,2]
[421471092,1777738264000,-500.0,0.00032602,2]
[421471097,1777738264000,-500.0,0.00032602,2]
[421471103,1777738264000,-500.0,0.00032602,2]
[421471106,1777738264000,-500.0,0.00032602,2]
[421471104,1777738264000,-740.61,0.00032602,2]
[421471101,1777738264000,-500.0,0.00032602,2]
[421471094,1777738264000,-500.0,0.00032602,2]
[421471120,1777738264000,-500.0,0.00032602,2]
[421471149,1777738264000,-500.0,0.00032602,2]
[421471130,1777738264000,-1111.98,0.00032602,2]
[421471146,1777738264000,-500.0,0.00032602,2]
[421471156,1777738264000,-500.0,0.00032602,2]
[421471123,1777738264000,-453.0063753,0.00032602,2]
[421471148,1777738264000,-500.0,0.00032602,2]
[421471154,1777738264000,-500.0,0.00032602,2]
[421471152,1777738264000,-500.0,0.00032602,2]
[421471155,1777738264000,-500.0,0.00032602,2]
[421471142,1777738264000,-658.51,0.00032602,2]
[421471150,1777738264000,-800.92,0.00032602,2]
[421471151,1777738264000,-753.28,0.00032602,2]
[421471153,1777738264000,-500.0,0.00032602,2]
[421471157,1777738264000,-36411.49,0.00032602,2]
[421471158,1777738264000,-728.83,0.00032602,2]
[421471159,1777738264000,-500.0,0.00032602,2]
[421471161,1777738264000,-2117.11301033,0.00032602,2]
[421471160,1777738264000,-806.17,0.00032602,2]
[421471147,1777738264000,-500.0,0.00032602,2]
[421471137,1777738264000,-500.0,0.00032602,2]
[421471145,1777738264000,-684.42,0.00032602,2]
[421471138,1777738264000,-724.96,0.00032602,2]
[421471122,1777738264000,-523.64,0.00032602,2]
[421471128,1777738264000,-519.12,0.00032602,2]
[421471125,1777738264000,-884.79,0.00032602,2]
[421471127,1777738264000,-500.0,0.00032602,2]
[421471139,1777738264000,-500.0,0.00032602,2]
[421471126,1777738264000,-500.0,0.00032602,2]
[421471129,1777738264000,-500.0,0.00032602,2]
[421471134,1777738264000,-500.0,0.00032602,2]
[421471124,1777738264000,-500.0,0.00032602,2]
[421471143,1777738264000,-500.0,0.00032602,2]
[421471133,1777738264000,-500.0,0.00032602,2]
[421471144,1777738264000,-666.15,0.00032602,2]
[421471141,1777738264000,-635.28,0.00032602,2]
[421471140,1777738264000,-812.98,0.00032602,2]
[421471135,1777738264000,-500.0,0.00032602,2]
[421471136,1777738264000,-500.0,0.00032602,2]
[421471132,1777738264000,-504.14,0.00032602,2]
[421471162,1777738416000,20041.41147491,0.00030137,120]
[421471163,1777738614000,-250.0,0.00013,2]
[421471170,1777738908000,-300.0,0.00014575,2]
[421471169,1777738908000,-250.0,0.000143,2]
[421471171,1777738908000,-2500.0,0.0001485,2]
[421471172,1777738908000,-2500.0,0.00015399,2]
[421471173,1777738908000,-2500.0,0.00015531,2]
[421471175,1777738908000,-2500.0,0.0001573,2]
[421471174,1777738908000,-1200.0,0.00015729,2]
[421471181,1777738908000,-500.0,0.0001573,2]
[421471177,1777738908000,-250.0,0.0001573,2]
[421471178,1777738908000,-2500.0,0.0001573,2]
[421471179,1777738908000,-255.55202424,0.0001573,2]
[421471180,1777738908000,-300.0,0.0001573,2]
[421471184,1777738908000,-946.44797576,0.00017288,2]
[421471182,1777738908000,-300.0,0.0001573,2]
[421471183,1777738908000,-196.0,0.00016,2]
[421471176,1777738908000,-300.0,0.0001573,2]
[421471188,1777739005000,150.0,0.00030136,120]
[421471190,1777739019000,-390.0,0.00017288,2]
[421471189,1777739019000,-733.55202424,0.00017288,2]
[421471193,1777739019000,-321.0,0.00019002,2]
[421471192,1777739019000,-2500.0,0.00018145,2]
[421471194,1777739019000,-1585.44797576,0.00019017,2]
[421471191,1777739019000,-250.0,0.00017717,2]
[421471197,1777739067000,-126.44797576,0.00019017,2]
[421471195,1777739067000,-914.55202424,0.00019017,2]
[421471196,1777739067000,-250.0,0.00019017,2]
[421471199,1777739142000,-123.55202424,0.00019017,2]
[421471202,1777739142000,-653.17761107,0.00020033,2]
[421471201,1777739142000,-151.36785972,0.0002,20]
[421471200,1777739142000,-422.0,0.00019017,2]
[421471206,1777739226000,-388.03673987,0.00020033,2]
[421471226,1777739431000,-282.41652562,0.00014999,2]
[421471215,1777739431000,-150.0,0.00014998,2]
[421471217,1777739431000,-57.23823194,0.00014999,2]
[421471218,1777739431000,-500.0,0.00014999,2]
[421471216,1777739431000,-394.144535,0.00014999,2]
[421471219,1777739431000,-163.56213201,0.00014999,2]
[421471220,1777739431000,-336.43786799,0.00014999,2]
[421471222,1777739431000,-285.57801415,0.00014999,2]
[421471221,1777739431000,-222.30213201,0.00014999,2]
[421471224,1777739431000,-500.0,0.00014999,2]
[421471223,1777739431000,-500.0,0.00014999,2]
[421471225,1777739431000,-500.0,0.00014999,2]
[421471228,1777739431000,-500.0,0.00014999,2]
[421471234,1777739431000,-500.0,0.00014999,2]
[421471229,1777739431000,-396.12518146,0.00014999,2]
[421471239,1777739431000,-500.0,0.00014999,2]
[421471242,1777739431000,-500.0,0.00014999,2]
[421471227,1777739431000,-500.0,0.00014999,2]
[421471236,1777739431000,-500.0,0.00014999,2]
[421471237,1777739431000,-500.0,0.00014999,2]
[421471245,1777739431000,-500.0,0.00014999,2]
[421471238,1777739431000,-500.0,0.00014999,2]
[421471233,1777739431000,-500.0,0.00014999,2]
[421471235,1777739431000,-500.0,0.00014999,2]
[421471232,1777739431000,-500.0,0.00014999,2]
[421471231,1777739431000,-500.0,0.00014999,2]
[421471230,1777739431000,-103.87481854,0.00014999,2]
[421471244,1777739431000,-500.0,0.00014999,2]
[421471272,1777739432000,-500.0,0.00014999,2]
[421471265,1777739432000,-500.0,0.00014999,2]
[421471263,1777739432000,-500.0,0.00014999,2]
[421471264,1777739432000,-500.0,0.00014999,2]
[421471267,1777739432000,-500.0,0.00014999,2]
[421471266,1777739432000,-500.0,0.00014999,2]
[421471268,1777739432000,-500.0,0.00014999,2]
[421471269,1777739432000,-500.0,0.00014999,2]
[421471270,1777739432000,-500.0,0.00014999,2]
[421471273,1777739432000,-500.0,0.00014999,2]
[421471271,1777739432000,-500.0,0.00014999,2]
[421471278,1777739432000,-500.0,0.00014999,2]
[421471276,1777739432000,-500.0,0.00014999,2]
[421471284,1777739432000,-365.69455672,0.00014999,2]
[421471281,1777739432000,-500.0,0.00014999,2]
[421471283,1777739432000,-500.0,0.00014999,2]
[421471282,1777739432000,-291.25101053,0.00014999,2]
[421471285,1777739432000,-117951.27714941,0.00015,2]
[421471274,1777739432000,-500.0,0.00014999,2]
[421471277,1777739432000,-500.0,0.00014999,2]
[421471279,1777739432000,-500.0,0.00014999,2]
[421471275,1777739432000,-500.0,0.00014999,2]
[421471280,1777739432000,-500.0,0.00014999,2]
[421471293,1777739437000,-1172.96774003,0.00015,2]
[421471294,1777739437000,-873.39,0.00015,2]
[421471292,1777739437000,-1086.4395005,0.00015,2]
[421471291,1777739437000,-6250.77960331,0.00015,2]
[421471290,1777739437000,-750.97674804,0.00015,2]
[421471300,1777739439000,-53690.4102661,0.00015,2]
[421471298,1777739439000,-7956.99907064,0.00015,2]
[421471299,1777739439000,-540.01220046,0.00015,2]
[421471297,1777739439000,-1880.62158438,0.00015,2]
[421471302,1777739440000,-119.0,0.00015,2]
[421471303,1777739440000,-785.70979744,0.00015,2]
[421471332,1777739440000,-0.50634515,0.00015,2]
[421471301,1777739440000,-7593.808309,0.00015,2]
[421471356,1777739440000,-81819.67322928,0.00015,2]
[421471509,1777739442000,-3925.1,0.00015,2]
[421471510,1777739442000,-4976.42433161,0.00015,2]
[421471536,1777739443000,-576.19794058,0.00023356,2]
[421471535,1777739443000,-1319.7,0.00022562,2]
[421471537,1777739443000,-576.19794058,0.0002489,2]
[421471538,1777739443000,-160.0,0.00025368,2]
[421471553,1777739443000,-150.0,0.00028997,7]
[421471540,1777739443000,-576.19794058,0.00026423,2]
[421471541,1777739443000,-151.20955361,0.00027068,2]
[421471539,1777739443000,-160.0,0.00025372,2]
[421471543,1777739443000,-507.0,0.00027137,2]
[421471544,1777739443000,-1000.0,0.0002753,20]
[421471534,1777739443000,-1143.25,0.00022562,2]
[421471546,1777739443000,-163.06,0.00028,2]
[421471549,1777739443000,-159.02,0.00028637,10]
[421471550,1777739443000,-9217.27,0.00028647,2]
[421471547,1777739443000,-795.1,0.00028523,10]
[421471552,1777739443000,-150.0,0.00028997,7]
[421471554,1777739443000,-150.0,0.00028997,7]
[421471548,1777739443000,-197.96,0.00028533,30]
[421471556,1777739443000,-150.0,0.00028997,7]
[421471545,1777739443000,-576.19794058,0.00027957,2]
[421471533,1777739443000,-2495.64,0.0002211,5]
[421471521,1777739443000,-500.0,0.00019899,2]
[421471532,1777739443000,-576.19794058,0.00021823,2]
[421471511,1777739443000,-4716.85956795,0.00015,2]
[421471512,1777739443000,-150.0,0.00016123,2]
[421471514,1777739443000,-576.19794066,0.00018756,2]
[421471513,1777739443000,-188.33976483,0.00016499,2]
[421471515,1777739443000,-178.9525626,0.00018856,2]
[421471525,1777739443000,-500.0,0.00019899,2]
[421471516,1777739443000,-1147.2174374,0.00018856,2]
[421471517,1777739443000,-1530.85,0.00018856,2]
[421471523,1777739443000,-500.0,0.00019899,2]
[421471524,1777739443000,-275.9313268,0.00019899,2]
[421471518,1777739443000,-254.53457246,0.00019899,2]
[421471522,1777739443000,-500.0,0.00019899,2]
[421471520,1777739443000,-274.06227944,0.00019899,2]
[421471519,1777739443000,-528.38233379,0.00019899,2]
[421471527,1777739443000,-4983.36278041,0.000199,3]
[421471528,1777739443000,-281.78564906,0.00020033,2]
[421471526,1777739443000,-191.8435956,0.00019899,2]
[421471530,1777739443000,-300.0,0.00020918,2]
[421471529,1777739443000,-576.19794058,0.00020289,2]
[421471531,1777739443000,-154.6280768,0.00021369,2]
[421471555,1777739443000,-150.0,0.00028997,7]
[421471542,1777739443000,-197.96,0.00027106,30]
[421471557,1777739443000,-150.0,0.00028997,7]
[421471592,1777739443000,-151.0,0.00031731,2]
[421471581,1777739443000,-2513.699,0.00031546,29]
[421471583,1777739443000,-500.0,0.000316,11]
[421471590,1777739443000,-151.0,0.00031731,2]
[421471584,1777739443000,-273.85107912,0.000316,2]
[421471586,1777739443000,-273.8510791,0.000316,2]
[421471585,1777739443000,-273.8510791,0.000316,2]
[421471589,1777739443000,-500.0,0.00031731,2]
[421471591,1777739443000,-151.0,0.00031731,2]
[421471582,1777739443000,-151.19868981,0.00031557,2]
[421471588,1777739443000,-200.0,0.00031731,2]
[421471594,1777739443000,-151.0,0.00031731,2]
[421471593,1777739443000,-151.0,0.00031731,2]
[421471596,1777739443000,-151.0,0.00031731,2]
[421471597,1777739443000,-151.0,0.00031731,2]
[421471595,1777739443000,-151.0,0.00031731,2]
[421471598,1777739443000,-226.71480827,0.00031731,2]
[421471601,1777739443000,-1500.0,0.000318,11]
[421471599,1777739443000,-1000.0,0.00031749,2]
[421471600,1777739443000,-1154.6,0.000318,120]
[421471587,1777739443000,-1000.0,0.000317,11]
[421471551,1777739443000,-507.0,0.00028739,3]
[421471576,1777739443000,-500.0,0.00031484,2]
[421471575,1777739443000,-500.0,0.00031484,2]
[421471568,1777739443000,-162.0,0.00031172,30]
[421471562,1777739443000,-197.96,0.00029959,30]
[421471565,1777739443000,-150.0,0.00031011,2]
[421471561,1777739443000,-2000.0,0.00029783,2]
[421471563,1777739443000,-1767.28719739,0.0003,7]
[421471566,1777739443000,-576.19794058,0.00031024,2]
[421471559,1777739443000,-576.19794058,0.0002949,2]
[421471560,1777739443000,-150.0,0.00029534,2]
[421471567,1777739443000,-157.0,0.00031172,30]
[421471579,1777739443000,-500.0,0.00031484,2]
[421471564,1777739443000,-507.0,0.00030341,5]
[421471570,1777739443000,-153.0,0.00031174,30]
[421471580,1777739443000,-252.82399749,0.00031484,2]
[421471572,1777739443000,-163.0,0.0003118,30]
[421471577,1777739443000,-500.0,0.00031484,2]
[421471578,1777739443000,-500.0,0.00031484,2]
[421471569,1777739443000,-158.0,0.00031174,30]
[421471573,1777739443000,-163.07,0.0003124,120]
[421471574,1777739443000,-500.0,0.00031484,2]
[421471571,1777739443000,-162.0,0.00031174,30]
[421471558,1777739443000,-150.0,0.00028997,7]
[421471604,1777739444000,-500.0,0.00031849,2]
[421471603,1777739444000,-163.06,0.0003184,2]
[421471602,1777739444000,-1500.0,0.000318,10]
[421471605,1777739444000,-377317.68501475,0.0003185,2]
[421471634,1777739446000,-306.35329006,0.00032227,10]
[421471635,1777739446000,-195.20003128,0.00032227,2]
[421471632,1777739446000,-188.77534053,0.00032218,2]
[421471631,1777739446000,-163.06,0.00032218,2]
[421471633,1777739446000,-258.65430764,0.00032219,30]
[421471637,1777739446000,-280.0,0.00032228,5]
[421471636,1777739446000,-150.0,0.00032227,20]
[421471639,1777739446000,-10000.0,0.00032228,2]
[421471638,1777739446000,-225.0,0.00032228,5]
[421471640,1777739446000,-716462.6071,0.00032228,2]
[421471641,1777739446000,-4652.3052,0.00032228,2]
[421471643,1777739446000,-151.0,0.00032228,7]
[421471642,1777739446000,-151.0,0.00032228,7]
[421471644,1777739446000,-151.0,0.00032228,7]
[421471646,1777739446000,-151.0,0.00032228,7]
[421471645,1777739446000,-151.0,0.00032228,7]
[421471648,1777739446000,-817.26256,0.0003228,29]
[421471649,1777739446000,-817.26257,0.0003228,29]
[421471651,1777739446000,-817.26257,0.0003228,29]
[421471650,1777739446000,-817.26257,0.0003228,29]
[421471628,1777739446000,-164.0,0.00032174,30]
[421471624,1777739446000,-212.10074692,0.00032,120]
[421471629,1777739446000,-2103.01,0.000322,2]
[421471630,1777739446000,-163.06,0.00032218,2]
[421471607,1777739446000,-480.81441035,0.0003185,2]
[421471609,1777739446000,-293009.20996636,0.0003185,2]
[421471610,1777739446000,-1558.0,0.0003185,15]
[421471612,1777739446000,-2103.01,0.000319,2]
[421471611,1777739446000,-2070.88539641,0.0003189,2]
[421471608,1777739446000,-465.39580854,0.0003185,2]
[421471616,1777739446000,-1109.10185175,0.0003195,5]
[421471614,1777739446000,-507.0,0.00031943,7]
[421471613,1777739446000,-2000.0,0.000319,11]
[421471656,1777739446000,-600.0,0.00032327,2]
[421471618,1777739446000,-1054.40646903,0.0003195,5]
[421471619,1777739446000,-1071.83610343,0.0003195,5]
[421471617,1777739446000,-1019.90705545,0.0003195,5]
[421471615,1777739446000,-1089.00456527,0.0003195,5]
[421471621,1777739446000,-1031.82026674,0.0003195,5]
[421471620,1777739446000,-1121.97052781,0.0003195,5]
[421471622,1777739446000,-1312.20616808,0.0003195,5]
[421471625,1777739446000,-1558.0,0.00032124,15]
[421471626,1777739446000,-5000.0,0.00032128,2]
[421471627,1777739446000,-153.0,0.00032174,30]
[421471623,1777739446000,-396.58935996,0.00032,120]
[421471653,1777739446000,-33114.2544,0.00032283,2]
[421471647,1777739446000,-151.0,0.00032228,7]
[421471654,1777739446000,-2783.76,0.000323,7]
[421471679,1777739446000,-600.0,0.00032327,2]
[421471678,1777739446000,-600.0,0.00032327,2]
[421471680,1777739446000,-600.0,0.00032327,2]
[421471684,1777739446000,-600.0,0.00032327,2]
[421471694,1777739446000,-600.0,0.00032327,2]
[421471687,1777739446000,-600.0,0.00032327,2]
[421471685,1777739446000,-600.0,0.00032327,2]
[421471695,1777739446000,-600.0,0.00032327,2]
[421471688,1777739446000,-600.0,0.00032327,2]
[421471686,1777739446000,-600.0,0.00032327,2]
[421471683,1777739446000,-600.0,0.00032327,2]
[421471691,1777739446000,-600.0,0.00032327,2]
[421471692,1777739446000,-600.0,0.00032327,2]
[421471693,1777739446000,-600.0,0.00032327,2]
[421471690,1777739446000,-600.0,0.00032327,2]
[421471697,1777739446000,-600.0,0.00032327,2]
[421471700,1777739446000,-600.0,0.00032327,2]
[421471699,1777739446000,-600.0,0.00032327,2]
[421471698,1777739446000,-600.0,0.00032327,2]
[421471655,1777739446000,-1500.0,0.000323,10]
[421471696,1777739446000,-600.0,0.00032327,2]
[421471677,1777739446000,-600.0,0.00032327,2]
[421471674,1777739446000,-600.0,0.00032327,2]
[421471689,1777739446000,-600.0,0.00032327,2]
[421471676,1777739446000,-600.0,0.00032327,2]
[421471657,1777739446000,-600.0,0.00032327,2]
[421471675,1777739446000,-600.0,0.00032327,2]
[421471659,1777739446000,-600.0,0.00032327,2]
[421471660,1777739446000,-600.0,0.00032327,2]
[421471668,1777739446000,-600.0,0.00032327,2]
[421471652,1777739446000,-2000.0,0.00032283,2]
[421471658,1777739446000,-600.0,0.00032327,2]
[421471669,1777739446000,-600.0,0.00032327,2]
[421471665,1777739446000,-600.0,0.00032327,2]
[421471667,1777739446000,-600.0,0.00032327,2]
[421471662,1777739446000,-600.0,0.00032327,2]
[421471666,1777739446000,-600.0,0.00032327,2]
[421471663,1777739446000,-600.0,0.00032327,2]
[421471664,1777739446000,-600.0,0.00032327,2]
[421471671,1777739446000,-600.0,0.00032327,2]
[421471681,1777739446000,-600.0,0.00032327,2]
[421471670,1777739446000,-600.0,0.00032327,2]
[421471682,1777739446000,-600.0,0.00032327,2]
[421471661,1777739446000,-600.0,0.00032327,2]
[421471672,1777739446000,-600.0,0.00032327,2]
[421471673,1777739446000,-600.0,0.00032327,2]
[421471738,1777739447000,-600.0,0.00032327,2]
[421471748,1777739447000,-500.0,0.00032328,2]
[421471741,1777739447000,-500.0,0.00032328,2]
[421471732,1777739447000,-600.0,0.00032327,2]
[421471731,1777739447000,-600.0,0.00032327,2]
[421471733,1777739447000,-600.0,0.00032327,2]
[421471739,1777739447000,-600.0,0.00032327,2]
[421471736,1777739447000,-600.0,0.00032327,2]
[421471740,1777739447000,-221.8718259,0.00032327,2]
[421471734,1777739447000,-600.0,0.00032327,2]
[421471735,1777739447000,-600.0,0.00032327,2]
[421471751,1777739447000,-500.0,0.00032328,2]
[421471753,1777739447000,-500.0,0.00032328,2]
[421471745,1777739447000,-500.0,0.00032328,2]
[421471746,1777739447000,-500.0,0.00032328,2]
[421471743,1777739447000,-500.0,0.00032328,2]
[421471752,1777739447000,-500.0,0.00032328,2]
[421471749,1777739447000,-505.28355958,0.00032328,2]